fUST/lending_fUST_20250901
["ID","MTS","AMOUNT","RATE_DAILY","PERIOD"]
[382706183,1756715205869,-500.0,0.00011829,2]
[382706184,1756715205903,-500.0,0.00011829,2]
[382706185,1756715205938,-500.0,0.00011829,2]
[382706186,1756715206192,-500.0,0.00011829,2]
[382706187,1756715206224,-500.0,0.00011829,2]
[382706188,1756715206256,-500.0,0.00011829,2]
[382706189,1756715206291,-500.0,0.00011829,2]
[382706190,1756715206325,-500.0,0.00011829,2]
[382706191,1756715206356,-500.0,0.00011829,2]
[382706192,1756715206390,-500.0,0.00011829,2]
[382706193,1756715206422,-500.0,0.00011829,2]
[382706194,1756715206454,-500.0,0.00011829,2]
[382706197,1756715226763,-300.0,0.00011828,2]
[382706198,1756715226798,-500.0,0.00011829,2]
[382706199,1756715226829,-500.0,0.00011829,2]
[382706200,1756715226861,-611.35813206,0.00011829,2]
[382706201,1756715226893,-500.0,0.00011829,2]
[382706202,1756715226925,-313.56288409,0.00011829,2]
[382706203,1756715226957,-500.0,0.00011829,2]
[382706204,1756715226989,-500.0,0.00011829,2]
[382706205,1756715227023,-500.0,0.00011829,2]
[382706206,1756715227058,-500.0,0.00011829,2]
[382706207,1756715227092,-50.1679677,0.00011829,2]
[382706208,1756715227315,-449.8320323,0.00011829,2]
[382706209,1756715227346,-500.0,0.00011829,2]
[382706210,1756715227379,-500.0,0.00011829,2]
[382706211,1756715227411,-500.0,0.00011829,2]
[382706212,1756715227446,-500.0,0.00011829,2]
[382706213,1756715227480,-500.0,0.00011829,2]
[382706214,1756715227513,-500.0,0.00011829,2]
[382706215,1756715227546,-500.0,0.00011829,2]
[382706216,1756715227580,-500.0,0.00011829,2]
[382706217,1756715227613,-500.0,0.00011829,2]
[382706218,1756715228032,-1200.0,0.00011828,2]
[382706219,1756715228070,-500.0,0.00011829,2]
[382706220,1756715228106,-500.0,0.00011829,2]
[382706221,1756715228142,-500.0,0.00011829,2]
[382706222,1756715228175,-500.0,0.00011829,2]
[382706223,1756715228209,-500.0,0.00011829,2]
[382706224,1756715228243,-500.0,0.00011829,2]
[382706225,1756715228276,-500.0,0.00011829,2]
[382706226,1756715228309,-100.01,0.00011829,2]
[382706227,1756715228396,-399.99,0.00011829,2]
[382706228,1756715228429,-500.0,0.00011829,2]
[382706229,1756715228460,-500.0,0.00011829,2]
[382706230,1756715228494,-500.0,0.00011829,2]
[382706231,1756715228527,-500.0,0.00011829,2]
[382706232,1756715228559,-500.0,0.00011829,2]
[382706233,1756715228592,-500.0,0.00011829,2]
[382706234,1756715228623,-500.0,0.00011829,2]
[382706235,1756715228653,-500.0,0.00011829,2]
[382706236,1756715228685,-500.0,0.00011829,2]
[382706237,1756715228793,-500.0,0.00011829,2]
[382706238,1756715228825,-466.85469344,0.00011829,2]
[382706239,1756715228856,-500.0,0.00011829,2]
[382706240,1756715236121,-1860.00889501,0.00011711,2]
[382706242,1756715237125,-2203.05262332,0.0001183,2]
[382706243,1756715237171,-10000.01,0.0001183,2]
[382706244,1756715237189,-10000.01,0.0001183,2]
[382706245,1756715237265,-10000.01,0.0001183,2]
[382706246,1756715237406,-10000.01,0.0001183,2]
[382706247,1756715246113,-195.95398973,0.00011829,2]
[382706248,1756715246153,-1408.05696806,0.0001183,2]
[382706249,1756715246269,-6791.98808442,0.0001183,2]
[382706250,1756715246307,-348.2430869,0.00011949,2]
[382706251,1756715246340,-500.0,0.00011949,2]
[382706252,1756715246374,-500.0,0.00011949,2]
[382706253,1756715246406,-500.0,0.00011949,2]
[382706254,1756715246439,-500.0,0.00011949,2]
[382706255,1756715246471,-500.0,0.00011949,2]
[382706256,1756715246505,-483.48203542,0.00011949,2]
[382706257,1756715246535,-500.0,0.00011949,2]
[382706258,1756715246569,-500.0,0.00011949,2]
[382706259,1756715246604,-500.0,0.00011949,2]
[382706260,1756715246694,-500.0,0.00011949,2]
[382706261,1756715246731,-500.0,0.00011949,2]
[382706262,1756715246765,-500.0,0.00011949,2]
[382706263,1756715246799,-500.0,0.00011949,2]
[382706264,1756715246834,-500.0,0.00011949,2]
[382706265,1756715246868,-500.0,0.00011949,2]
[382706266,1756715246901,-500.0,0.00011949,2]
[382706267,1756715246934,-500.0,0.00011949,2]
[382706268,1756715246967,-500.0,0.00011949,2]
[382706269,1756715247001,-500.0,0.00011949,2]
[382706270,1756715247165,-500.0,0.00011949,2]
[382706271,1756715247205,-500.0,0.00011949,2]
[382706272,1756715247244,-500.0,0.00011949,2]
[382706273,1756715247284,-500.0,0.00011949,2]
[382706274,1756715247325,-500.0,0.00011949,2]
[382706275,1756715247363,-500.0,0.00011949,2]
[382706276,1756715247403,-350.0,0.00011949,2]
[382706277,1756715247441,-500.0,0.00011949,2]
[382706278,1756715247474,-500.0,0.00011949,2]
[382706279,1756715248464,-336.56975536,0.0001195,2]
[382706280,1756715248483,-1300.01,0.0001195,2]
[382706281,1756715248620,-10000.01,0.0001195,2]
[382706282,1756715248666,-10000.01,0.0001195,2]
[382706283,1756715248799,-10000.01,0.0001195,2]
[382706284,1756715248816,-10000.01,0.0001195,2]
[382706285,1756715248835,-8766.51792044,0.0001195,2]
[382706286,1756715248845,-1233.49207956,0.00012071,2]
[382706287,1756715248880,-10000.01,0.00012071,2]
[382706288,1756715256097,-10000.01,0.00012071,2]
[382706289,1756715256221,-10000.01,0.00012071,2]
[382706290,1756715256413,-10000.01,0.00012071,2]
[382706291,1756715256538,-830.40440376,0.00012071,2]
[382706292,1756715256567,-8339.20119248,0.00012071,2]
[382706293,1756715256749,-500.0,0.00012223,2]
[382706294,1756715256776,-1131.82,0.00012329,2]
[382706295,1756715256805,-929.08,0.00012329,2]
[382706296,1756715256834,-774.24,0.00012329,2]
[382706297,1756715256862,-645.2,0.00012329,2]
[382706298,1756715256890,-537.66,0.00012329,2]
[382706299,1756715256918,-448.05,0.00012329,2]
[382706300,1756715257033,-373.38,0.00012329,2]
[382706301,1756715257065,-311.15,0.00012329,2]
[382706302,1756715257096,-259.29,0.00012329,2]
[382706303,1756715257124,-216.07,0.00012329,2]
[382706304,1756715257156,-180.06,0.00012329,2]
[382706305,1756715257361,-150.05,0.00012329,2]
[382706306,1756715257393,-750.29,0.00012329,2]
[382706307,1756715257495,-3739.02832428,0.00012474,2]
[382706308,1756715257684,-2521.95335144,0.00012474,2]
[382706309,1756715257719,-300.0,0.00012574,2]
[382706310,1756715257753,-300.0,0.00012574,2]
[382706311,1756715257789,-300.0,0.00012574,2]
[382706312,1756715257822,-300.0,0.00012574,2]
[382706313,1756715257857,-300.0,0.00012574,2]
[382706314,1756715257889,-300.0,0.00012574,2]
[382706315,1756715257922,-300.0,0.00012574,2]
[382706316,1756715257954,-300.0,0.00012574,2]
[382706317,1756715258079,-300.0,0.00012574,2]
[382706318,1756715258117,-300.0,0.00012574,2]
[382706319,1756715258154,-300.0,0.00012574,2]
[382706320,1756715258187,-300.0,0.00012574,2]
[382706321,1756715258220,-300.0,0.00012574,2]
[382706322,1756715258255,-300.0,0.00012574,2]
[382706323,1756715258289,-300.0,0.00012574,2]
[382706324,1756715258318,-2358.0026851,0.00012637,2]
[382706325,1756715258505,-1084.0046298,0.00012637,2]
[382706326,1756715258514,-184.28603654,0.00012889,2]
[382706327,1756715258529,-300.0,0.00012889,2]
[382706328,1756715258543,-115.71396346,0.00012889,2]
[382706329,1756715258552,-184.28603654,0.000129,2]
[382706330,1756715258586,-1571.22228996,0.000129,2]
[382706331,1756715258616,-596.58374438,0.00012969,2]
[382706332,1756715258797,-88.29726278,0.00012969,2]
[382706333,1756715258816,-300.0,0.00012969,2]
[382706334,1756715258839,-300.0,0.00012969,2]
[382706335,1756715258853,-300.0,0.00012969,2]
[382706336,1756715258867,-300.0,0.00012969,2]
[382706337,1756715258881,-300.0,0.00012969,2]
[382706338,1756715258931,-300.0,0.00012969,2]
[382706339,1756715258946,-3442.0073149,0.00012969,2]
[382706340,1756715258979,-334.09335364,0.00012969,2]
[382706341,1756715258988,-420.0,0.00012987,2]
[382706342,1756715258997,-817.12893632,0.00012987,2]
[382706343,1756715259011,-862.87106368,0.00012987,2]
[382706344,1756715259020,-420.0,0.00012988,2]
[382706345,1756715259030,-420.0,0.00012988,2]
[382706346,1756715259039,-420.0,0.00012988,2]
[382706347,1756715259052,-1680.0,0.00013012,2]
[382706348,1756715259062,-250.0,0.00013142,2]
[382706349,1756715259071,-294.0472595,0.00013301,2]
[382706350,1756715259081,-1914.06335252,0.00013463,2]
[382706351,1756715266413,-10000.01,0.0001195,2]
[382706352,1756715266432,-10000.01,0.0001195,2]
[382706353,1756715266458,-10000.01,0.0001195,2]
[382706354,1756715266673,-830.40440376,0.0001195,2]
[382706355,1756715266698,-8339.20119248,0.0001195,2]
[382706356,1756715266803,-4346.91832318,0.00013463,2]
[382706357,1756715266838,-1306.17335364,0.00013502,2]
[382706358,1756715266964,-10000.01,0.00013502,2]
[382706359,1756715267107,-766.91706966,0.00013502,2]
[382706360,1756715267137,-151.0,0.00013627,2]
[382706361,1756715267171,-500.0,0.00013627,2]
[382706362,1756715267201,-151.0,0.00013627,2]
[382706363,1756715267232,-151.75506122,0.00013627,2]
[382706364,1756715267262,-203.87399798,0.00013666,2]
[382706365,1756715267291,-216.95898291,0.00013666,2]
[382706366,1756715267320,-480.0,0.00013698,2]
[382706367,1756715267352,-480.0,0.00013698,2]
[382706368,1756715267385,-480.0,0.00013698,2]
[382706369,1756715267417,-481.21143917,0.00013698,2]
[382706370,1756715267449,-480.0,0.00013698,2]
[382706371,1756715267479,-434.57689812,0.00013698,2]
[382706372,1756715267591,-45.42310188,0.00013698,2]
[382706373,1756715267621,-480.0,0.00013698,2]
[382706374,1756715267653,-481.61529543,0.00013698,2]
[382706375,1756715267685,-1688.46,0.00013698,2]
[382706376,1756715267715,-480.0,0.00013698,2]
[382706377,1756715267745,-480.0,0.00013698,2]
[382706378,1756715267775,-480.0,0.00013698,2]
[382706379,1756715267803,-480.9231616,0.00013698,2]
[382706380,1756715267831,-108.17688218,0.00013698,2]
[382706381,1756715267942,-550.81311782,0.00013698,2]
[382706382,1756715267972,-480.0,0.00013698,2]
[382706383,1756715268002,-771.36,0.00013698,2]
[382706384,1756715268032,-480.0,0.00013698,2]
[382706385,1756715268070,-488.41963826,0.00013698,2]
[382706386,1756715268109,-480.0,0.00013698,2]
[382706387,1756715268140,-792.56,0.00013698,2]
[382706388,1756715268170,-480.0,0.00013698,2]
[382706389,1756715268202,-473.70448784,0.00013698,2]
[382706390,1756715268343,-6.29551216,0.00013698,2]
[382706391,1756715268374,-481.36080035,0.00013698,2]
[382706392,1756715268406,-480.0,0.00013698,2]
[382706393,1756715268435,-480.0,0.00013698,2]
[382706394,1756715268465,-480.0,0.00013698,2]
[382706395,1756715268496,-480.0,0.00013698,2]
[382706396,1756715268527,-480.0,0.00013698,2]
[382706397,1756715268556,-480.0,0.00013698,2]
[382706398,1756715268586,-709.26,0.00013698,2]
[382706399,1756715268618,-469.86737498,0.00013698,2]
[382706400,1756715269629,-141.93596482,0.0001183,2]
[382706401,1756715269644,-1376.31,0.0001183,2]
[382706402,1756715276155,-500.0,0.00011829,2]
[382706403,1756715276186,-500.0,0.00011829,2]
[382706404,1756715276216,-418.04978271,0.00011829,2]
[382706405,1756715276247,-307.43453656,0.00011829,2]
[382706406,1756715276279,-500.0,0.00011829,2]
[382706407,1756715276312,-274.65469556,0.00011829,2]
[382706408,1756715276345,-500.0,0.00011829,2]
[382706409,1756715276377,-500.0,0.00011829,2]
[382706410,1756715276411,-500.0,0.00011829,2]
[382706411,1756715276442,-500.0,0.00011829,2]
[382706412,1756715276830,-999.73197034,0.0001183,2]
[382706413,1756715276898,-10000.01,0.0001183,2]
[382706414,1756715276957,-10000.01,0.0001183,2]
[382706415,1756715276986,-10000.01,0.0001183,2]
[382706416,1756715277001,-6651.62766108,0.0001183,2]
[382706417,1756715277010,-578.34485699,0.00011949,2]
[382706418,1756715277019,-578.34485699,0.00011949,2]
[382706419,1756715277028,-578.34485699,0.00011949,2]
[382706420,1756715277037,-303.90765161,0.00013139,2]
[382706421,1756715277047,-906.44262502,0.00013698,2]
[382706422,1756715277060,-402.99749132,0.00013698,2]
[382706423,1756715277073,-77.00250868,0.00013698,2]
[382706424,1756715277083,-482.02396838,0.00013698,2]
[382706425,1756715277091,-570.63,0.00013698,2]
[382706426,1756715277102,-584.95,0.00013698,2]
[382706427,1756715277113,-480.0,0.00013698,2]
[382706428,1756715277122,-461.63308123,0.00013698,2]
[382706429,1756715277133,-480.0,0.00013698,2]
[382706430,1756715277144,-480.0,0.00013698,2]
[382706431,1756715277153,-1699.74,0.00013698,2]
[382706432,1756715277162,-480.0,0.00013698,2]
[382706433,1756715277172,-483.0498722,0.00013698,2]
[382706434,1756715277182,-1028.15,0.00013698,2]
[382706435,1756715277191,-480.0,0.00013698,2]
[382706436,1756715277200,-480.0,0.00013698,2]
[382706437,1756715277212,-480.0,0.00013698,2]
[382706438,1756715277222,-482.35750628,0.00013698,2]
[382706439,1756715277232,-306.70359717,0.00013698,2]
[382706440,1756715277241,-463.76946606,0.00013698,2]
[382706441,1756715277275,-16.23053394,0.00013698,2]
[382706442,1756715277304,-176.92287843,0.00013698,2]
[382706443,1756715277334,-781.18,0.00013698,2]
[382706444,1756715277364,-480.0,0.00013698,2]
[382706445,1756715277395,-600.69,0.00013698,2]
[382706446,1756715277424,-480.0,0.00013698,2]
[382706447,1756715277454,-480.0,0.00013698,2]
[382706448,1756715277483,-480.0,0.00013698,2]
[382706449,1756715277512,-480.0,0.00013698,2]
[382706450,1756715277544,-480.0,0.00013698,2]
[382706451,1756715277575,-480.0,0.00013698,2]
[382706452,1756715277780,-480.0,0.00013698,2]
[382706453,1756715277810,-480.0,0.00013698,2]
[382706454,1756715277838,-480.0,0.00013698,2]
[382706455,1756715277868,-480.0,0.00013698,2]
[382706456,1756715277896,-480.0,0.00013698,2]
[382706457,1756715277928,-480.0,0.00013698,2]
[382706458,1756715277956,-504.55,0.00013698,2]
[382706459,1756715277985,-481.56537606,0.00013698,2]
[382706460,1756715278012,-480.0,0.00013698,2]
[382706461,1756715278218,-480.0,0.00013698,2]
[382706462,1756715278299,-480.0,0.00013698,2]
[382706463,1756715278328,-480.0,0.00013698,2]
[382706464,1756715278358,-480.0,0.00013698,2]
[382706465,1756715278387,-480.0,0.00013698,2]
[382706466,1756715278417,-481.67,0.00013698,2]
[382706467,1756715278446,-480.0,0.00013698,2]
[382706468,1756715278475,-615.35,0.00013698,2]
[382706469,1756715278503,-500.0,0.00013698,2]
[382706470,1756715278532,-653.0357254,0.00013699,2]
[382706471,1756715278666,-699.8985492,0.00013699,2]
[382706472,1756715278695,-2510.152493,0.00013699,2]
[382706473,1756715278723,-751.9209699,0.00013699,2]
[382706474,1756715279426,-451.94000244,0.00013699,2]
[382706475,1756715279455,-751.9209699,0.00013699,2]
[382706476,1756715279534,-2076.0659758,0.00013699,2]
[382706477,1756715296146,-480.0,0.00013425,2]
[382706478,1756715296178,-480.0,0.00013561,2]
[382706479,1756715296206,-480.0,0.00013698,2]
[382706480,1756715296237,-300.0,0.00013698,2]
[382706481,1756715296267,-1707.93,0.00013698,2]
[382706482,1756715296297,-480.0,0.00013698,2]
[382706483,1756715296328,-480.0,0.00013698,2]
[382706484,1756715296358,-352.57267807,0.00013698,2]
[382706485,1756715296454,-4080.08335194,0.00013699,2]
[382706486,1756715296558,-1839.84329612,0.00013699,2]
[382706487,1756715296588,-151.0,0.00013699,2]
[382706488,1756715296619,-151.0,0.00013699,2]
[382706489,1756715296649,-1174.392399,0.00013699,2]
[382706490,1756715296678,-151.0,0.00013901,2]
[382706491,1756715296708,-500.0,0.00013901,2]
[382706492,1756715296738,-151.0,0.00013901,2]
[382706493,1756715298281,493.17,0.00013698,2]
[382706494,1756715298642,480.0,0.00013698,2]
[382706495,1756715301561,790.36860976,0.00013766,2]
[382706496,1756715301588,5866.14544057,0.00013766,2]
[382706497,1756715303096,210.25,0.00012329,2]
[382706498,1756715309739,489.14134259,0.00013698,2]
[382706499,1756715310375,480.0,0.00013904,2]
[382706500,1756715310431,613.45,0.00013698,2]
[382706501,1756715310527,2341.02321684,0.00013766,2]
[382706502,1756715310550,10000.01,0.00013766,2]
[382706503,1756715310572,10000.01,0.00013766,2]
[382706504,1756715310594,10000.01,0.00013766,2]
[382706505,1756715310616,10000.01,0.00013766,2]
[382706506,1756715310639,10000.01,0.00013766,2]
[382706507,1756715310662,10000.01,0.00013766,2]
[382706508,1756715310684,10000.01,0.00013766,2]
[382706509,1756715310708,10000.01,0.00013766,2]
[382706510,1756715310731,10000.01,0.00013766,2]
[382706511,1756715316244,-175.21,0.00012329,2]
[382706512,1756715316277,-480.0,0.00013698,2]
[382706513,1756715316306,-480.0,0.00013698,2]
[382706514,1756715316339,-500.0,0.00013765,2]
[382706515,1756715316369,-243.77016083,0.00013765,2]
[382706516,1756715316403,-500.0,0.00013765,2]
[382706517,1756715316435,-500.0,0.00013765,2]
[382706518,1756715316467,-500.0,0.00013765,2]
[382706519,1756715316504,-500.0,0.00013765,2]
[382706520,1756715316559,-500.0,0.00013765,2]
[382706521,1756715316591,-500.0,0.00013765,2]
[382706522,1756715316704,-500.0,0.00013765,2]
[382706523,1756715316735,-500.0,0.00013765,2]
[382706524,1756715316768,-500.0,0.00013765,2]
[382706525,1756715316801,-197.96162446,0.00013765,2]
[382706526,1756715316832,-500.0,0.00013765,2]
[382706527,1756715316863,-500.0,0.00013765,2]
[382706528,1756715316895,-500.0,0.00013765,2]
[382706529,1756715316927,-500.0,0.00013765,2]
[382706530,1756715316957,-500.0,0.00013765,2]
[382706531,1756715316987,-221.69087356,0.00013765,2]
[382706532,1756715317016,-500.0,0.00013765,2]
[382706533,1756715317131,-500.0,0.00013765,2]
[382706534,1756715317162,-255.7169101,0.00013765,2]
[382706535,1756715317191,-430.12630178,0.00013765,2]
[382706536,1756715317222,-500.0,0.00013765,2]
[382706537,1756715317254,-500.0,0.00013765,2]
[382706538,1756715317284,-500.0,0.00013765,2]
[382706539,1756715317317,-157.56108697,0.00013765,2]
[382706540,1756715317349,-161.64570265,0.00013765,2]
[382706541,1756715317382,-500.0,0.00013765,2]
[382706542,1756715317415,-500.0,0.00013765,2]
[382706543,1756715317449,-500.0,0.00013765,2]
[382706544,1756715317481,-489.909997,0.00013765,2]
[382706545,1756715317811,-10.090003,0.00013765,2]
[382706546,1756715317842,-500.0,0.00013765,2]
[382706547,1756715317874,-500.0,0.00013765,2]
[382706548,1756715317905,-500.0,0.00013765,2]
[382706549,1756715317936,-500.0,0.00013765,2]
[382706550,1756715317968,-250.52005943,0.00013765,2]
[382706551,1756715317997,-500.0,0.00013765,2]
[382706552,1756715318028,-500.0,0.00013765,2]
[382706553,1756715318059,-500.0,0.00013765,2]
[382706554,1756715318939,-480.0,0.00013698,2]
[382706556,1756715326349,-876.08,0.00012329,2]
[382706557,1756715326378,-301.526,0.00013491,2]
[382706558,1756715326408,-301.526,0.00013627,2]
[382706559,1756715326438,-480.0,0.00013698,2]
[382706560,1756715326468,-480.0,0.00013698,2]
[382706561,1756715326968,-5363.74716398,0.00013766,2]
[382706562,1756715327095,-10000.01,0.00013766,2]
[382706563,1756715327224,-10000.01,0.00013766,2]
[382706564,1756715327345,-10000.01,0.00013766,2]
[382706565,1756715327473,-10000.01,0.00013766,2]
[382706566,1756715327587,-10000.01,0.00013766,2]
[382706567,1756715337701,-816.64,0.00013698,2]
[382706568,1756715337732,-649.59,0.00013698,2]
[382706569,1756715337788,-7067.55,0.00013766,2]
[382706570,1756715337820,-10000.01,0.00013766,2]
[382706571,1756715338027,-10000.01,0.00013766,2]
[382706572,1756715338153,-10000.01,0.00013766,2]
[382706573,1756715338423,-10000.01,0.00013766,2]
[382706574,1756715338456,-10000.01,0.00013766,2]
[382706575,1756715338564,-1892.92095566,0.00013766,2]
[382706576,1756715338589,-6214.16808868,0.00013766,2]
[382706577,1756715338707,-480.0,0.00013904,2]
[382706578,1756715339572,9040.01,0.00012946,2]
[382706579,1756715339593,10000.01,0.00012946,2]
[382706580,1756715339614,10000.01,0.00012946,2]
[382706581,1756715346556,-960.0,0.00012816,2]
[382706582,1756715346672,-10000.01,0.00012816,2]
[382706583,1756715346809,-10000.01,0.00012816,2]
[382706584,1756715346989,-10000.01,0.00012816,2]
[382706585,1756715347123,-10000.01,0.00012816,2]
[382706586,1756715347321,-2287.6669106,0.00012816,2]
[382706587,1756715347352,-300.0,0.00012945,2]
[382706588,1756715347405,-4824.6761788,0.00012946,2]
[382706589,1756715347464,-10000.01,0.00012946,2]
[382706590,1756715347576,-10000.01,0.00012946,2]
[382706591,1756715356255,-10000.01,0.00012946,2]
[382706592,1756715356412,-10000.01,0.00012946,2]
[382706593,1756715356544,-10000.01,0.00012946,2]
[382706594,1756715356692,-4326.7990634,0.00012946,2]
[382706595,1756715356720,-151.0,0.00013627,2]
[382706596,1756715356748,-151.0,0.00013627,2]
[382706597,1756715356777,-242.3268336,0.00013627,2]
[382706598,1756715356806,-106.758206,0.00013627,2]
[382706599,1756715356909,-44.241794,0.00013627,2]
[382706600,1756715356968,-152.33332027,0.00013627,2]
[382706601,1756715356998,-151.0,0.00013627,2]
[382706602,1756715357029,-151.0,0.00013627,2]
[382706603,1756715357060,-880.75,0.00013698,2]
[382706604,1756715357093,-1126.43,0.00013698,2]
[382706605,1756715357123,-649.64,0.00013698,2]
[382706606,1756715357151,-480.0,0.00013698,2]
[382706607,1756715357182,-481.5968499,0.00013698,2]
[382706608,1756715357393,-480.0,0.00013698,2]
[382706609,1756715357584,894.50965966,0.00013627,2]
[382706610,1756715357607,358.49034034,0.00013627,2]
[382706611,1756715362531,2008.0,0.00013762,2]
[382706612,1756715363740,157.0,8.4e-07,2]
[382706613,1756715364677,480.0,0.00013698,2]
[382706614,1756715364843,157.0,8.4e-07,2]
[382706615,1756715365182,751.98,0.00013698,2]
[382706616,1756715365983,157.0,8.4e-07,2]
[382706617,1756715368501,157.0,8.4e-07,2]
[382706618,1756715369717,157.0,8.4e-07,2]
[382706619,1756715371133,157.0,8.4e-07,2]
[382706620,1756715372382,157.0,8.4e-07,2]
[382706621,1756715372960,500.0,0.00013765,2]
[382706622,1756715373286,500.0,0.00013765,2]
[382706623,1756715374029,480.0,0.00013698,2]
[382706624,1756715374299,157.0,8.4e-07,2]
[382706625,1756715374345,500.0,0.00013765,2]
[382706626,1756715374397,480.0,0.00013698,2]
[382706627,1756715374658,500.0,0.00013765,2]
[382706628,1756715374955,500.0,0.00013765,2]
[382706629,1756715375275,480.0,0.00013698,2]
[382706630,1756715375311,157.0,8.4e-07,2]
[382706631,1756715375467,504.3650049,0.00013765,2]
[382706632,1756715380355,480.0,0.00013698,2]
[382706633,1756715382584,64.17465476,0.00013698,2]
[382706634,1756715382609,416.4441989,0.00013698,2]
[382706635,1756715387757,480.0,0.00013698,2]
[382706636,1756715388436,1758.61,0.00013698,2]
[382706637,1756715388781,2008.0,0.00013762,2]
[382706638,1756715390630,499.29,0.00013698,2]
[382706639,1756715392423,500.0,0.00013765,2]
[382706640,1756715392484,369.66693977,0.00013765,2]
[382706641,1756715392760,802.95,0.00013698,2]
[382706642,1756715395229,518.35,0.00013698,2]
[382706643,1756715400468,480.0,0.00013698,2]
[382706644,1756715400854,480.0,0.00013698,2]
[382706645,1756715401246,978.82,0.00013698,2]
[382706646,1756715401315,480.0,0.00013698,2]
[382706647,1756715403198,227.87886133,0.00013698,2]
[382706648,1756715403223,252.12113867,0.00013698,2]
[382706649,1756715407137,482.30376197,0.00013698,2]
[382706650,1756715408120,480.0,0.00013698,2]
[382706651,1756715410942,623.77,0.00013698,2]
[382706652,1756715412836,2027.0,0.00013761,2]
[382706653,1756715413103,480.0,0.00013698,2]
[382706654,1756715416287,482.08901058,0.00013698,2]
[382706655,1756715417347,480.0,0.00013698,2]
[382706656,1756715420275,484.81447225,0.00013698,2]
[382706657,1756715421636,480.0,0.00013698,2]
[382706658,1756715424538,480.0,0.00013698,2]
[382706659,1756715424580,1044.86,0.00013698,2]
[382706660,1756715424614,480.0,0.00013698,2]
[382706661,1756715426381,480.0,0.00013698,2]
[382706662,1756715427313,480.0,0.00013698,2]
[382706663,1756715429747,480.0,0.00013698,2]
[382706664,1756715430008,727.65,0.00013698,2]
[382706665,1756715430511,3172.44,0.00013698,2]
[382706710,1756715433722,480.0,0.00013698,2]
[382706711,1756715434500,480.0,0.00013698,2]
[382706712,1756715435915,151.26416307,0.00013636,2]
[382706713,1756715436757,480.0,0.00013698,2]
[382706752,1756715437906,-673.11612289,0.00013897,2]
[382706754,1756715437918,-686.88438583,0.00013897,2]
[382706756,1756715437927,-300.0,0.000139,2]
[382706758,1756715437937,-237.0,0.000139,2]
[382706760,1756715437947,-290.0,0.000139,2]
[382706762,1756715437957,-359.96062244,0.000139,2]
[382706764,1756715437969,-840.03937756,0.000139,2]
[382706766,1756715437978,-300.0,0.000139,2]
[382706768,1756715437987,-151.0,0.00013901,2]
[382706771,1756715437997,-151.0,0.00013901,2]
[382706773,1756715438006,-151.0,0.00013901,2]
[382706775,1756715438015,-151.0,0.00013901,2]
[382706777,1756715438024,-151.0,0.00013901,2]
[382706779,1756715438033,-1253.0,0.00013901,2]
[382706781,1756715438043,-500.0,0.00013904,2]
[382706783,1756715438053,-170.63911258,0.00013904,2]
[382706785,1756715438062,-500.0,0.00013904,2]